bitfinex/quotes_BTCUSD_20220307
["timestamp","ask_amount","ask_price","bid_price","bid_amount"]
[1646694007910,0.18308637,38228.0,38218.0,0.1993]
[1646694008107,0.18308637,38228.0,38212.0,0.3]
[1646694008308,0.18308637,38228.0,38213.0,1.403449]
[1646694008605,0.18308637,38228.0,38215.0,0.403449]
[1646694008806,0.18308637,38228.0,38220.0,0.16052489]
[1646694009006,0.0525,38233.0,38220.0,0.16052489]
[1646694009007,0.21372395,38221.0,38220.0,0.16052489]
[1646694009208,0.403277,38225.0,38223.0,0.16473073]
[1646694009807,0.35,38224.0,38211.0,0.4189]
[1646694010072,0.256573,38222.0,38202.0,0.70186566]
[1646694010274,0.256573,38222.0,38206.0,0.004]
[1646694010275,0.15,38212.0,38206.0,0.004]
[1646694010570,0.15,38212.0,38195.0,0.002]
[1646694010571,0.553277,38209.0,38195.0,0.002]
[1646694010868,0.553277,38209.0,38192.0,0.002]
[1646694010872,0.04333,38198.0,38192.0,0.002]
[1646694011069,0.256573,38197.0,38192.0,0.002]
[1646694011271,0.065497,38196.0,38192.0,0.002]
[1646694011473,0.15,38193.0,38183.0,0.01408]
[1646694011673,0.15,38190.0,38183.0,0.001]
[1646694011872,0.51667011,38184.0,38183.0,0.001]
[1646694012068,0.63347011,38184.0,38183.0,0.001]
[1646694012275,0.37689711,38184.0,38183.0,0.001]
[1646694012472,0.78017411,38184.0,38183.0,0.001]
[1646694012669,0.1168,38184.0,38183.0,0.001]
[1646694012869,0.0525,38184.0,38183.0,0.001]
[1646694013070,0.0525,38184.0,38183.0,0.404277]
[1646694013469,0.0525,38184.0,38183.0,0.16152489]
[1646694013711,0.0525,38184.0,38183.0,0.16122489]
[1646694014411,0.21702273,38187.0,38183.0,0.16122489]
[1646694014613,0.21702273,38187.0,38182.0,0.001]
[1646694014614,0.15,38184.0,38182.0,0.00019184]
[1646694014820,0.15,38184.0,38182.0,1.84e-06]
[1646694014821,0.609073,38183.0,38182.0,1.84e-06]
[1646694015016,0.609073,38183.0,38181.0,0.00994673]
[1646694015017,0.98694258,38183.0,38181.0,0.00994673]
[1646694015216,0.98694258,38183.0,38167.0,0.002]
[1646694015217,0.2,38181.0,38167.0,0.002]
[1646694015415,0.06553289,38179.0,38167.0,0.002]
[1646694015614,0.256573,38178.0,38167.0,0.002]
[1646694015814,0.403277,38177.0,38167.0,0.002]
[1646694016014,0.6062639,38176.0,38167.0,0.002]
[1646694016217,0.67224861,38175.0,38167.0,0.002]
[1646694016419,0.67224861,38175.0,38160.0,0.001]
[1646694016420,0.15,38169.0,38160.0,0.001]
[1646694016616,0.87079124,38168.0,38160.0,0.001]
[1646694016818,0.15,38163.0,38160.0,0.001]
[1646694017016,0.82634682,38162.0,38151.0,0.01]
[1646694017220,0.15,38152.0,38147.0,0.002]
[1646694017467,0.609073,38151.0,38147.0,0.001]
[1646694017660,0.659073,38151.0,38147.0,0.001]
[1646694017862,0.1,38150.0,38147.0,0.001]
[1646694018163,0.35,38162.0,38147.0,0.001]
[1646694018362,0.0525,38155.0,38147.0,0.001]
[1646694018567,0.35,38162.0,38148.0,0.403277]
[1646694018568,0.0525,38161.0,38148.0,0.403277]
[1646694018761,0.0525,38161.0,38147.0,0.001]
[1646694019161,0.0525,38161.0,38149.0,0.20653082]
[1646694019361,0.0525,38161.0,38152.0,0.00020113]
[1646694019761,0.06393,38161.0,38152.0,0.00020113]
[1646694019963,0.09102167,38156.0,38152.0,0.00020113]
[1646694020164,0.09102167,38156.0,38155.0,0.64513492]
[1646694020365,0.09102167,38156.0,38155.0,0.85279032]
[1646694020564,0.08602167,38156.0,38155.0,1.15279007]
[1646694020765,0.0525,38169.0,38157.0,0.403277]
[1646694020968,0.49330096,38184.0,38164.0,0.14999975]
[1646694021246,0.00020096,38184.0,38175.0,0.55327675]
[1646694021439,0.00020096,38184.0,38178.0,0.15800008]
[1646694021642,0.1,38196.0,38178.0,0.15800008]
[1646694021643,0.17062627,38196.0,38180.0,0.403277]
[1646694021841,0.1,38203.0,38181.0,0.855777]
[1646694021842,0.1998,38198.0,38181.0,0.855777]
[1646694022035,0.69430995,38206.0,38181.0,0.855777]
[1646694022036,0.17062627,38204.0,38189.0,0.403277]
[1646694022235,0.17062627,38205.0,38191.0,0.403277]
[1646694022437,0.00080355,38206.0,38203.0,0.19920156]
[1646694022643,0.00080355,38206.0,38204.0,1.01748388]
[1646694022834,0.036,38207.0,38204.0,0.71748388]
[1646694023037,0.01143,38220.0,38207.0,0.35]
[1646694023240,0.01143,38220.0,38208.0,0.753277]
[1646694023435,4.48456838,38222.0,38208.0,0.45]
[1646694023640,4.48456838,38222.0,38208.0,0.05]
[1646694023641,0.19004771,38217.0,38208.0,0.05]
[1646694023836,0.25161225,38213.0,38205.0,0.1]
[1646694024036,0.25161225,38213.0,38200.0,0.0525]
[1646694024235,0.703277,38212.0,38204.0,0.0525]
[1646694024438,0.83424,38212.0,38204.0,0.0525]
[1646694024641,0.15,38210.0,38204.0,0.0525]
[1646694024835,0.2113844,38190.0,38185.0,0.4573]
[1646694025073,0.2113844,38190.0,38186.0,0.0525]
[1646694025274,0.2113844,38190.0,38180.0,0.2396456]
[1646694025275,0.09102167,38187.0,38180.0,0.2396456]
[1646694025467,0.09102167,38187.0,38178.0,0.403277]
[1646694025768,0.09102167,38187.0,38177.0,0.0999]
[1646694026370,0.24112288,38184.0,38177.0,0.0999]
[1646694026568,0.24120644,38184.0,38177.0,0.0999]
[1646694026769,0.24120644,38184.0,38174.0,0.44962814]
[1646694026974,8.356e-05,38184.0,38180.0,0.14999975]
[1646694027171,8.356e-05,38184.0,38181.0,0.455777]
[1646694027369,8.356e-05,38184.0,38182.0,0.90577675]
[1646694027573,0.09102167,38187.0,38183.0,0.3525]
[1646694027775,1.67e-06,38187.0,38185.0,0.14999975]
[1646694027972,1.67e-06,38187.0,38186.0,0.755777]
[1646694028171,0.22016681,38205.0,38189.0,0.02624]
[1646694028371,0.22016681,38205.0,38193.0,0.403277]
[1646694028724,0.00080276,38206.0,38200.0,0.14999975]
[1646694028917,0.01143,38216.0,38210.0,0.23965975]
[1646694029119,0.27891568,38220.0,38210.0,0.34156975]
[1646694029517,0.403277,38216.0,38210.0,0.10191]
[1646694029922,0.256573,38215.0,38199.0,0.3999]
[1646694030120,0.01141,38216.0,38199.0,0.3999]
[1646694030323,0.00020071,38215.0,38200.0,0.1]
[1646694030520,0.21168044,38210.0,38201.0,0.3]
[1646694031120,0.26040402,38211.0,38201.0,0.3]
[1646694031319,0.01141,38216.0,38202.0,0.403277]
[1646694031522,0.00020073,38207.0,38204.0,0.403277]
[1646694031720,0.00020073,38207.0,38205.0,0.3]
[1646694031919,0.00020073,38207.0,38201.0,0.3]
[1646694032122,0.00020073,38207.0,38198.0,0.1]
[1646694032321,0.00020073,38207.0,38200.0,0.004]
[1646694032783,0.29213611,38210.0,38200.0,0.004]
[1646694032988,0.00018893,38206.0,38204.0,0.403277]
[1646694033289,0.00018893,38206.0,38205.0,0.403277]
[1646694033685,0.3011,38223.0,38205.0,0.403277]
[1646694033686,0.01152,38218.0,38205.0,0.403277]
[1646694033884,0.01154,38222.0,38205.0,0.1]
[1646694034085,0.00018893,38207.0,38206.0,0.403277]
[1646694034883,0.24056721,38216.0,38206.0,0.403277]
[1646694035083,0.00075558,38214.0,38208.0,0.22993834]
[1646694035482,0.00075558,38214.0,38209.0,0.403277]
[1646694036086,0.01135,38222.0,38210.0,0.1]
[1646694036317,0.00018267,38213.0,38210.0,0.1]
[1646694036515,0.00018267,38213.0,38211.0,0.403277]
[1646694036917,0.00018267,38213.0,38205.0,0.1]
[1646694037118,0.00018267,38213.0,38201.0,0.1]
[1646694037322,0.02624,38219.0,38196.0,0.0482]
[1646694037518,0.2176628,38207.0,38198.0,0.16465397]
[1646694037720,0.00018266,38214.0,38198.0,0.45392038]
[1646694038619,0.215227,38210.0,38198.0,0.53016038]
[1646694038818,0.00018268,38208.0,38199.0,0.503277]
[1646694039319,0.00018268,38208.0,38199.0,0.27359999]
[1646694039717,0.26470863,38209.0,38199.0,0.1]
[1646694039972,0.00018342,38205.0,38199.0,0.1]
[1646694040168,0.00018342,38205.0,38198.0,0.21465397]
[1646694040363,0.00018342,38205.0,38198.0,0.26465397]
[1646694040565,0.00018342,38205.0,38199.0,1.38003575]
[1646694040771,0.00018342,38205.0,38201.0,0.02624]
[1646694040967,0.0115,38216.0,38203.0,0.02624]
[1646694041173,0.0007336,38209.0,38204.0,0.403396]
[1646694041564,0.0007336,38209.0,38207.0,0.25149407]
[1646694041766,0.0007336,38209.0,38205.0,0.28237446]
[1646694041767,0.0007336,38209.0,38205.0,0.1]
[1646694041968,0.0007336,38209.0,38206.0,0.403396]
[1646694042166,0.16568376,38215.0,38205.0,0.1]
[1646694042474,0.00018341,38210.0,38206.0,0.403396]
[1646694042666,0.00018341,38210.0,38201.0,0.0999]
[1646694042869,0.00018341,38210.0,38202.0,0.60220014]
[1646694043269,0.27871462,38211.0,38204.0,0.403396]
[1646694043476,0.27871462,38211.0,38198.0,0.15]
[1646694043477,0.00018331,38207.0,38198.0,0.15]
[1646694044122,0.00018331,38207.0,38193.0,0.12614]
[1646694044322,0.19884406,38201.0,38193.0,0.13014]
[1646694044523,0.19884406,38201.0,38194.0,0.403396]
[1646694045122,0.21189115,38203.0,38194.0,0.403396]
[1646694045321,0.21189115,38203.0,38195.0,0.05]
[1646694045525,0.21189115,38203.0,38196.0,0.403396]
[1646694045723,0.21189115,38203.0,38197.0,0.1]
[1646694045924,0.00018333,38200.0,38197.0,0.1]
[1646694046126,0.00018333,38200.0,38198.0,0.403396]
[1646694046524,0.00018333,38200.0,38194.0,0.403396]
[1646694046723,0.00018333,38200.0,38195.0,0.1]
[1646694047023,0.45597317,38203.0,38195.0,0.1]
[1646694047227,0.28590862,38196.0,38186.0,0.32368994]
[1646694047466,0.28590862,38196.0,38183.0,0.026]
[1646694047671,0.28590862,38196.0,38179.0,0.0999]
[1646694047672,0.3,38195.0,38179.0,0.0999]
[1646694047866,0.3,38195.0,38174.0,0.00018347]
[1646694047867,0.451596,38194.0,38174.0,0.00018347]
[1646694048067,0.451596,38194.0,38171.0,0.037]
[1646694048068,0.18779953,38179.0,38171.0,0.037]
[1646694048266,0.403396,38178.0,38171.0,0.037]
[1646694048465,0.22305953,38179.0,38171.0,0.037]
[1646694048671,0.403396,38178.0,38171.0,0.037]
[1646694049265,0.403396,38177.0,38171.0,0.037]
[1646694049468,0.403396,38175.0,38171.0,0.037]
[1646694049672,0.3,38174.0,38171.0,0.037]
[1646694049871,0.451596,38173.0,38171.0,0.037]
[1646694050269,0.88519897,38172.0,38171.0,0.037]
[1646694050469,1.40242363,38172.0,38171.0,0.037]
[1646694050670,0.69902763,38172.0,38171.0,0.037]
[1646694050878,0.248,38172.0,38171.0,0.037]
[1646694051070,0.0482,38172.0,38171.0,0.037]
[1646694051721,0.16551409,38186.0,38171.0,0.037]
[1646694051722,0.0482,38179.0,38174.0,0.20039736]
[1646694051919,0.0482,38179.0,38174.0,0.28963055]
[1646694052118,0.0482,38179.0,38172.0,0.03055951]
[1646694053122,0.0482,38179.0,38172.0,0.25464817]
[1646694053419,0.0482,38179.0,38172.0,0.32015017]
[1646694053620,0.3498,38186.0,38173.0,0.429636]
[1646694053621,0.1998,38186.0,38173.0,0.429636]
[1646694053819,0.1218,38196.0,38173.0,0.429636]
[1646694053820,0.1,38197.0,38177.0,0.02624]
[1646694054024,0.0482,38198.0,38178.0,0.403396]
[1646694054220,0.1998,38194.0,38178.0,0.403396]
[1646694054421,0.1998,38194.0,38176.0,0.130977]
[1646694054622,0.20827149,38191.0,38182.0,0.48299801]
[1646694054819,0.25172757,38192.0,38182.0,0.48299801]
[1646694055569,0.00020055,38189.0,38183.0,0.1]
[1646694055767,0.00020055,38189.0,38184.0,0.403396]
[1646694056171,0.403396,38188.0,38175.0,0.11308]
[1646694056369,0.04840055,38189.0,38175.0,0.2]
[1646694056578,0.11370799,38189.0,38175.0,0.2]
[1646694056769,0.23489736,38184.0,38175.0,0.2]
[1646694056968,0.45561224,38184.0,38175.0,0.2]
[1646694057170,0.52112324,38184.0,38175.0,0.2]
[1646694057772,0.28622588,38184.0,38175.0,0.2]
[1646694058273,0.28642645,38184.0,38175.0,0.2]
[1646694058473,0.28642645,38184.0,38174.0,0.00020062]
[1646694058474,0.703396,38183.0,38174.0,0.00020062]
[1646694058720,0.517116,38182.0,38174.0,0.00020062]
[1646694058920,0.065528,38181.0,38172.0,0.03055951]
[1646694059120,0.18195614,38174.0,38172.0,0.03055951]
[1646694059314,0.403396,38173.0,38172.0,0.03055951]
[1646694059916,0.18195614,38174.0,38172.0,0.03055951]
[1646694060317,0.065521,38178.0,38172.0,0.03055951]
[1646694060519,0.403396,38177.0,38172.0,0.03055951]
[1646694061316,0.26515458,38176.0,38172.0,0.03055951]
[1646694061519,0.534454,38175.0,38173.0,0.00017932]
[1646694061723,0.468925,38175.0,38173.0,0.00017932]
[1646694062117,0.065529,38175.0,38173.0,0.00017932]
[1646694062319,0.89156238,38174.0,38173.0,0.00017932]
[1646694062574,0.89156238,38174.0,38172.0,0.03055951]
[1646694062575,0.93976238,38174.0,38172.0,0.03055951]
[1646694062771,0.703396,38173.0,38172.0,0.03073883]
[1646694062969,0.451596,38173.0,38172.0,0.03073883]
[1646694063370,0.801396,38173.0,38172.0,0.0020491]
[1646694063572,0.86893356,38172.0,38161.0,0.002]
[1646694063776,0.15,38166.0,38161.0,0.002]
[1646694063970,0.451596,38165.0,38161.0,0.002]
[1646694064172,0.513646,38165.0,38161.0,0.002]
[1646694064373,0.23206873,38164.0,38161.0,0.002]
[1646694064573,0.451596,38163.0,38161.0,0.002]
[1646694064773,0.451596,38163.0,38156.0,0.001]
[1646694064774,0.682701,38163.0,38154.0,0.001]
[1646694064974,0.403396,38160.0,38154.0,0.001]
[1646694065174,0.0482,38159.0,38154.0,0.001]
[1646694065374,0.403396,38158.0,38154.0,0.001]
[1646694065574,0.403396,38156.0,38154.0,0.001]
[1646694065777,0.451596,38156.0,38154.0,0.001]
[1646694066419,0.455596,38156.0,38154.0,0.001]
[1646694066719,0.13115366,38155.0,38147.0,0.001]
[1646694067019,0.45682231,38151.0,38147.0,0.001]
[1646694067216,0.90841831,38151.0,38147.0,0.001]
[1646694068018,0.651396,38151.0,38147.0,0.001]
[1646694068219,0.0482,38151.0,38147.0,0.001]
[1646694068420,0.451596,38151.0,38147.0,0.001]
[1646694068622,0.0482,38151.0,38147.0,0.001]
[1646694068824,0.0482,38151.0,38149.0,0.00020069]
[1646694069122,0.0482,38151.0,38150.0,0.85517084]
[1646694069320,0.1998,38163.0,38151.0,0.35]
[1646694069522,0.0482,38159.0,38152.0,0.3]
[1646694069721,0.0482,38159.0,38153.0,0.403396]
[1646694069974,0.1998,38163.0,38154.0,0.3]
[1646694070281,0.1998,38163.0,38156.0,0.16941511]
[1646694070476,0.1998,38163.0,38158.0,0.24918132]
[1646694070876,0.0482,38167.0,38158.0,0.24918132]
[1646694071275,0.0482,38167.0,38159.0,0.30020066]
[1646694071677,0.0482,38167.0,38159.0,0.00020066]
[1646694071878,0.16529839,38166.0,38159.0,0.00020066]
[1646694072179,0.16529839,38166.0,38158.0,0.24918132]
[1646694072377,0.16529839,38166.0,38161.0,0.00016651]
[1646694072978,0.1998,38169.0,38161.0,0.00016651]
[1646694073378,0.1998,38169.0,38158.0,0.24918132]
[1646694073580,0.1998,38169.0,38162.0,0.00016651]
[1646694074014,0.17234263,38168.0,38162.0,0.00016651]
[1646694074615,0.17234263,38168.0,38159.0,0.0131]
[1646694074821,0.17234263,38168.0,38163.0,0.00016651]
[1646694075214,0.1998,38169.0,38163.0,0.00016651]
[1646694075215,0.403396,38167.0,38163.0,0.00016651]
[1646694075516,0.1998,38169.0,38163.0,0.00016651]
[1646694075714,0.1998,38169.0,38158.0,0.26228132]
[1646694075918,0.1998,38169.0,38163.0,0.00020052]
[1646694075919,0.46430489,38169.0,38163.0,0.00020052]
[1646694076114,0.46430489,38169.0,38163.0,0.00012982]
[1646694076115,0.1998,38169.0,38163.0,0.00012982]
[1646694076316,0.20121987,38166.0,38163.0,0.00012982]
[1646694076719,0.403396,38163.0,38154.0,0.00080227]
[1646694076918,0.403396,38163.0,38148.0,0.001]
[1646694076919,0.3,38162.0,38148.0,0.001]
[1646694077118,0.065562,38159.0,38148.0,0.001]
[1646694077318,0.2482821,38151.0,38148.0,0.001]
[1646694077571,0.23299968,38151.0,38148.0,0.001]
[1646694077969,0.4037,38151.0,38148.0,0.001]
[1646694079469,0.1998,38155.0,38148.0,0.001]
[1646694079674,0.365556,38161.0,38149.0,0.00020042]
[1646694079875,0.4037,38160.0,38149.0,0.00020042]
[1646694080268,0.315366,38158.0,38149.0,0.00020042]
[1646694080470,0.18795398,38156.0,38149.0,0.00020042]
[1646694080671,0.065556,38158.0,38148.0,0.001]
[1646694080869,0.4037,38157.0,38153.0,0.0002004]
[1646694081316,0.1998,38159.0,38153.0,0.0002004]
[1646694081719,0.1998,38159.0,38154.0,0.4037]
[1646694081921,0.7899,38168.0,38154.0,0.4037]
[1646694082117,0.301953,38171.0,38153.0,0.29223794]
[1646694082317,8.458e-05,38168.0,38153.0,0.29223794]
[1646694082722,8.458e-05,38168.0,38159.0,0.26842966]
[1646694082919,0.4037,38167.0,38158.0,0.18062865]
[1646694083121,8.459e-05,38168.0,38161.0,0.14999975]
[1646694083321,8.459e-05,38168.0,38162.0,0.75887772]
[1646694083521,8.459e-05,38168.0,38163.0,0.02124]
[1646694083721,8.459e-05,38168.0,38167.0,0.02124]
[1646694083919,8.459e-05,38168.0,38167.0,0.42494]
[1646694084121,0.0006,38174.0,38167.0,1.32534]
[1646694084322,0.0006,38174.0,38171.0,0.02124]
[1646694084521,0.0006,38174.0,38172.0,0.42494]
[1646694084721,0.0006,38174.0,38173.0,0.1]
[1646694084997,0.0006,38174.0,38173.0,0.5037]
[1646694085189,0.0006,38174.0,38173.0,0.5537]
[1646694085385,0.0006,38174.0,38173.0,0.80610476]
[1646694086185,0.0006,38174.0,38173.0,0.40240476]
[1646694086587,0.0006,38174.0,38168.0,0.105]
[1646694086789,0.0006,38174.0,38168.0,0.005]
[1646694086988,0.0003,38174.0,38168.0,0.005]
[1646694087387,0.404,38174.0,38168.0,0.005]
[1646694087689,0.404,38174.0,38167.0,0.2037736]
[1646694087690,0.0003,38174.0,38167.0,0.2037736]
[1646694087888,0.0003,38174.0,38165.0,0.00796386]
[1646694088089,0.00020007,38173.0,38166.0,0.4037]
[1646694088722,0.00020007,38173.0,38167.0,0.1]
[1646694088916,0.0003,38174.0,38167.0,0.20101512]
[1646694089317,0.00018803,38171.0,38168.0,0.4037]
[1646694089517,0.00018803,38171.0,38169.0,0.4037]
[1646694089716,0.00018803,38171.0,38168.0,0.4037]
[1646694089916,0.00018803,38171.0,38165.0,0.00796386]
[1646694090120,0.0003,38174.0,38166.0,0.4037]
[1646694090324,0.0003,38174.0,38165.0,0.00796386]
[1646694090325,0.0003,38174.0,38167.0,0.1]
[1646694090618,8.474e-05,38171.0,38166.0,0.4037]
[1646694090816,8.474e-05,38171.0,38167.0,0.1]
[1646694091017,8.474e-05,38171.0,38168.0,0.4037]
[1646694091219,8.474e-05,38171.0,38169.0,0.4037]
[1646694091421,0.0003,38174.0,38167.0,0.1]
[1646694091618,8.474e-05,38171.0,38167.0,0.1]
[1646694091819,8.474e-05,38171.0,38168.0,0.4037]
[1646694092122,8.474e-05,38171.0,38169.0,0.1]
[1646694092323,8.474e-05,38171.0,38170.0,0.4537]
[1646694092581,0.0003,38174.0,38170.0,0.4537]
[1646694092779,0.0003,38174.0,38172.0,0.4037]
[1646694093377,0.0003,38174.0,38172.0,0.469204]
[1646694094079,0.0003,38174.0,38172.0,0.4037]
[1646694094480,0.0003,38174.0,38173.0,0.5037]
[1646694095489,0.0003,38174.0,38168.0,0.1]
[1646694095684,0.0003,38174.0,38167.0,0.005]
[1646694095885,0.0003,38174.0,38165.0,0.00796386]
[1646694096515,0.17185042,38172.0,38165.0,0.00997766]
[1646694096715,0.23737742,38172.0,38165.0,0.00997766]
[1646694096923,0.00033826,38191.0,38171.0,0.17623975]
[1646694097217,0.00033826,38191.0,38177.0,0.02624]
[1646694097419,0.4875,38192.0,38178.0,0.42994]
[1646694097717,0.3823,38195.0,38182.0,0.4037]
[1646694097918,0.21702127,38190.0,38183.0,0.23973]
[1646694098220,0.21702127,38190.0,38180.0,0.3]
[1646694098414,0.21702127,38190.0,38181.0,0.1]
[1646694098716,0.21702127,38190.0,38180.0,0.365495]
[1646694098916,0.21702127,38190.0,38182.0,0.4037]
[1646694099117,8.461e-05,38188.0,38183.0,0.7037]
[1646694099315,0.06583138,38194.0,38189.0,0.00016922]
[1646694099518,0.4037,38193.0,38189.0,0.00016922]
[1646694099718,0.00033838,38194.0,38189.0,0.00016922]
[1646694099966,0.315366,38197.0,38189.0,0.00016922]
[1646694100168,0.4037,38194.0,38189.0,0.00016922]
[1646694100369,0.4037,38193.0,38189.0,0.00016922]
[1646694102576,0.5037,38193.0,38189.0,0.00016922]
[1646694102973,0.315366,38191.0,38189.0,0.00016922]
[1646694103376,0.415366,38191.0,38189.0,0.00016922]
[1646694104620,0.420366,38191.0,38189.0,0.00016922]
[1646694105821,0.415366,38191.0,38189.0,0.00016922]
[1646694106520,0.420366,38191.0,38189.0,0.00016922]
[1646694107775,0.320366,38191.0,38189.0,0.00016922]
[1646694108569,0.324366,38191.0,38189.0,0.00016922]
[1646694108775,0.319366,38191.0,38189.0,0.00016922]
[1646694109371,0.004,38191.0,38189.0,0.00016922]
[1646694109574,0.004,38191.0,38190.0,0.4037]
[1646694109771,0.004,38191.0,38190.0,0.7037]
[1646694109976,0.0001821,38192.0,38191.0,0.4037]
[1646694110174,0.0001821,38192.0,38191.0,0.7037]
[1646694110479,0.0001821,38192.0,38191.0,1.20931609]
[1646694110674,0.21282117,38206.0,38191.0,1.20931609]
[1646694110872,0.036,38207.0,38193.0,0.42994]
[1646694111076,0.036,38207.0,38195.0,0.4037]
[1646694111077,0.01072826,38199.0,38195.0,0.4037]
[1646694111327,0.01072826,38199.0,38196.0,0.35095313]
[1646694111619,0.01072826,38199.0,38197.0,0.4037]
[1646694111818,0.01072826,38199.0,38198.0,0.7001653]
[1646694112018,0.01,38199.0,38198.0,1.0501653]
[1646694112220,0.01017363,38199.0,38198.0,0.6464653]
[1646694113020,0.01017363,38199.0,38198.0,1.0501653]
[1646694113220,0.00069441,38205.0,38199.0,0.37624]
[1646694113423,0.00069441,38205.0,38204.0,0.02624]
[1646694113623,0.00069787,38206.0,38204.0,0.72994]
[1646694113828,0.00069787,38206.0,38205.0,1.63034]
[1646694114221,0.8712,38222.0,38205.0,2.31917496]
[1646694114222,0.16354339,38222.0,38205.0,2.31917496]
[1646694114422,0.0011,38223.0,38210.0,0.14999975]
[1646694114623,0.0011,38223.0,38211.0,0.834567]
[1646694114822,0.0011,38223.0,38212.0,0.1]
[1646694115075,0.0011,38223.0,38213.0,0.3]
[1646694115273,0.17582197,38223.0,38219.0,0.22530985]
[1646694115474,0.0011,38223.0,38219.0,0.22530985]
[1646694115874,8.435e-05,38220.0,38219.0,0.22530985]
[1646694116075,8.435e-05,38220.0,38216.0,0.4037]
[1646694116278,8.435e-05,38220.0,38218.0,0.4037]
[1646694116676,8.435e-05,38220.0,38217.0,0.3]
[1646694116677,8.435e-05,38220.0,38219.0,0.40761113]
[1646694116976,0.0011,38223.0,38219.0,0.00398192]
[1646694117176,0.00020051,38221.0,38220.0,0.4037]
[1646694117576,0.2338421,38229.0,38220.0,0.4037]
[1646694117577,0.47146856,38229.0,38220.0,0.820214]
[1646694117777,0.47146856,38229.0,38220.0,0.416514]
[1646694118376,0.4037,38227.0,38219.0,0.00405271]
[1646694118580,0.15,38225.0,38219.0,0.00405271]
[1646694118831,0.315366,38224.0,38220.0,0.00391113]
[1646694119034,0.315366,38224.0,38220.0,0.00398192]
[1646694119238,0.01017844,38229.0,38221.0,0.4037]
[1646694119434,0.01017844,38229.0,38222.0,0.7037]
[1646694119435,0.00820244,38229.0,38222.0,0.7037]
[1646694119634,0.00820244,38229.0,38225.0,0.4037]
[1646694120034,0.00820244,38229.0,38221.0,0.35]
[1646694120233,0.00820244,38229.0,38223.0,0.23709101]
[1646694120735,0.00828612,38229.0,38225.0,0.00189733]
[1646694120933,0.00828612,38229.0,38225.0,0.00391113]
[1646694121132,0.00828612,38229.0,38225.0,0.00398192]
[1646694121333,0.00828612,38229.0,38226.0,0.61602382]
[1646694121540,0.00820244,38229.0,38226.0,0.4037]
[1646694121734,0.00840293,38229.0,38226.0,0.4037]
[1646694122674,0.00840293,38229.0,38225.0,0.30606651]
[1646694122874,0.00820244,38229.0,38226.0,0.00189733]
[1646694123075,0.00840293,38229.0,38226.0,0.00398192]
[1646694123276,0.4037,38228.0,38226.0,0.00398192]
[1646694123574,0.00840293,38229.0,38226.0,0.00398192]
[1646694123975,0.15954381,38228.0,38226.0,0.00398192]
[1646694124178,0.4037,38228.0,38226.0,0.00606651]
[1646694124377,0.4037,38227.0,38226.0,0.00606651]
[1646694124577,0.00820244,38229.0,38226.0,0.00606651]
[1646694124976,0.00820244,38229.0,38226.0,0.00796384]
[1646694125178,0.18742496,38228.0,38226.0,0.01004843]
[1646694125877,0.18742496,38228.0,38226.0,0.01194576]
[1646694126221,0.18742496,38228.0,38226.0,0.01395956]
[1646694126417,0.4037,38227.0,38226.0,0.01395956]
[1646694126617,0.315366,38227.0,38226.0,0.01395956]
[1646694126821,0.4037,38227.0,38226.0,0.01395956]
[1646694127019,0.4037,38227.0,38226.0,0.01585689]
[1646694127319,0.4037,38227.0,38226.0,0.01794148]
[1646694127719,0.18742496,38228.0,38226.0,0.01794148]
[1646694127922,0.315366,38227.0,38226.0,0.01794148]
[1646694128320,0.315366,38227.0,38226.0,0.0219234]
[1646694129324,0.315366,38227.0,38226.0,0.02389152]
[1646694129523,0.18742496,38228.0,38226.0,0.02590532]
[1646694129725,0.7537,38227.0,38226.0,0.02590532]
[1646694130302,0.315366,38224.0,38221.0,0.00018957]
[1646694130510,0.4037,38221.0,38220.0,0.00018957]
[1646694130703,0.7037,38221.0,38210.0,0.00391113]
[1646694130901,0.15,38213.0,38210.0,0.00391113]
[1646694131107,0.62443546,38212.0,38210.0,0.00391113]
[1646694131301,0.92135577,38212.0,38210.0,0.00391113]
[1646694131500,1.07135577,38212.0,38210.0,0.00391113]
[1646694132902,0.70062031,38212.0,38210.0,0.00391113]
[1646694133723,0.70062031,38212.0,38210.0,0.00411148]
[1646694133916,0.90242454,38212.0,38210.0,0.00411148]
[1646694134119,0.85242454,38212.0,38210.0,0.00411148]
[1646694134820,0.85242454,38212.0,38210.0,0.00391113]
[1646694135021,0.60550423,38212.0,38210.0,0.00411133]
[1646694136026,0.60550423,38212.0,38210.0,0.00391113]
[1646694136226,0.65550423,38212.0,38210.0,0.00411133]
[1646694136424,0.25180423,38212.0,38210.0,0.00411133]
[1646694136625,0.25480423,38212.0,38210.0,0.00209753]
[1646694137126,0.25480423,38212.0,38210.0,0.00189733]
[1646694137326,0.65850423,38212.0,38210.0,0.00209753]
[1646694138266,0.60850423,38212.0,38210.0,0.00209753]
[1646694138467,0.60850423,38212.0,38210.0,0.00189733]
[1646694138667,0.60550423,38212.0,38210.0,0.00209768]
[1646694139071,0.60550423,38212.0,38210.0,0.00020035]
[1646694139072,0.315366,38211.0,38210.0,0.00020035]
[1646694139567,0.315366,38211.0,38200.0,0.065458]
[1646694139770,0.20180423,38212.0,38209.0,0.00020035]
[1646694140172,0.4037,38211.0,38209.0,0.00020035]
[1646694140573,0.4037,38210.0,38209.0,0.00020035]
[1646694140768,0.4037,38210.0,38197.0,0.078533]
[1646694140970,0.25180423,38212.0,38208.0,0.00020035]
[1646694141227,0.4037,38211.0,38208.0,0.00020035]
[1646694142025,0.38273823,38212.0,38200.0,0.17257655]
[1646694142227,0.4037,38209.0,38208.0,0.00018961]
[1646694143328,0.2291946,38208.0,38207.0,0.00018961]
[1646694143527,0.130945,38209.0,38207.0,0.00018961]
[1646694144227,0.4037,38208.0,38207.0,0.00018961]
[1646694144427,0.4037,38208.0,38197.0,0.01307]
[1646694144627,0.132945,38209.0,38197.0,0.01307]
[1646694144828,0.24654773,38207.0,38206.0,0.00018962]
[1646694145073,0.4037,38207.0,38206.0,0.00018962]
[1646694145271,0.40358537,38207.0,38206.0,0.00018962]